bitfinex/quotes_SOLUSD_20251013
["timestamp","ask_amount","ask_price","bid_price","bid_amount"]
[1760388586224,8.52,208.02,207.98,85.30807897]
[1760388586725,8.52,208.02,207.99,0.7]
[1760388589325,8.52,208.02,207.99,5.50788803]
[1760388589632,8.52,208.02,208.0,3.09504204]
[1760388589822,8.52,208.02,208.0,0.69]
[1760388592033,8.52,208.02,207.99,84.60788803]
[1760388592329,8.52,208.02,207.99,85.29788803]
[1760388592915,2.40504204,208.0,207.95,0.69]
[1760388593120,11.54504204,207.99,207.94,4.80905258]
[1760388593319,11.54504204,207.99,207.94,5.49905258]
[1760388593810,16.35296661,207.99,207.95,0.69]
[1760388594019,15.73296661,207.99,207.95,0.69]
[1760388595228,13.32792457,207.99,207.95,0.69]
[1760388596128,15.73296661,207.99,207.95,0.69]
[1760388597011,16.35296661,207.99,207.93,84.60911754]
[1760388597205,16.35296661,207.99,207.93,85.29911754]
[1760388599225,16.35296661,207.99,207.94,0.69]
[1760388600227,9.14,207.99,207.94,5.49897331]
[1760388600437,8.52,207.99,207.95,0.69]
[1760388600818,16.35300759,207.99,207.94,4.80897331]
[1760388601119,15.73300759,207.99,207.94,4.80897331]
[1760388601323,16.35300759,207.99,207.94,5.49897331]
[1760388601933,16.35300759,207.99,207.95,0.69]
[1760388602945,16.35300759,207.99,207.95,80.49]
[1760388603648,2.40504204,207.96,207.93,79.8]
[1760388603947,8.52,207.95,207.93,79.8]
[1760388605649,8.52,207.95,207.93,80.49]
[1760388607350,7.21351788,207.97,207.93,80.49]
[1760388607551,8.52,207.96,207.93,80.49]
[1760388607850,8.52,207.95,207.93,80.49]
[1760388608954,8.52,207.95,207.93,85.29928425]
[1760388609655,8.52,207.95,207.94,0.69]
[1760388610352,8.52,207.97,207.94,5.49897239]
[1760388610556,8.52,207.97,207.95,0.69]
[1760388610762,8.52,207.97,207.94,4.80897239]
[1760388610946,2.40504204,207.95,207.93,79.8]
[1760388611261,8.52,207.94,207.93,79.8]
[1760388611434,11.54504204,207.94,207.93,79.8]
[1760388612048,10.92504204,207.94,207.93,79.8]
[1760388612860,2.40504204,207.94,207.93,79.8]
[1760388613071,10.92504204,207.94,207.93,79.8]
[1760388613635,16.35412158,207.94,207.93,79.8]
[1760388613851,16.35412158,207.94,207.89,0.2]
[1760388614064,2.40504204,207.91,207.89,0.2]
[1760388614235,10.92504204,207.9,207.89,0.2]
[1760388615148,11.54504204,207.9,207.89,0.2]
[1760388615450,10.92504204,207.9,207.89,0.2]
[1760388616732,15.73504685,207.9,207.89,0.2]
[1760388618938,20.8,207.92,207.89,0.9]
[1760388619153,8.52,207.91,207.89,0.9]
[1760388619354,8.52,207.91,207.89,0.2]
[1760388619657,10.92504204,207.91,207.89,0.2]
[1760388621378,13.32979829,207.91,207.89,0.2]
[1760388621561,14.87088154,207.91,207.89,0.2]
[1760388622550,22.34108325,207.94,207.9,0.7]
[1760388622756,10.06108325,207.93,207.9,0.7]
[1760388623162,10.06108325,207.93,207.91,0.7]
[1760388623365,8.52,207.93,207.91,0.7]
[1760388624666,8.52,207.92,207.91,0.7]
[1760388624855,8.52,207.92,207.89,80.0]
[1760388625179,20.8,207.94,207.89,80.0]
[1760388625348,8.52,207.93,207.9,0.7]
[1760388625548,8.52,207.92,207.91,0.7]
[1760388625752,25.60910198,207.94,207.91,0.7]
[1760388625949,8.52,207.93,207.91,0.7]
[1760388627088,8.52,207.93,207.9,4.80999471]
[1760388627293,8.52,207.93,207.91,0.7]
[1760388627995,8.52,207.92,207.91,0.7]
[1760388628665,8.52,207.92,207.89,84.81019003]
[1760388629065,8.52,207.92,207.89,86.35127328]
[1760388629364,8.52,207.93,207.9,0.7]
[1760388629760,8.52,207.93,207.9,80.5]
[1760388629959,8.52,207.93,207.91,0.7]
[1760388630182,8.52,207.93,207.92,0.7]
[1760388634268,8.52,207.93,207.89,5.01019003]
[1760388634269,16.83339745,207.92,207.86,0.2]
[1760388634490,11.01863678,207.86,207.82,0.2]
[1760388634695,8.56,207.85,207.82,0.2]
[1760388634870,8.56,207.84,207.83,0.7]
[1760388635070,10.10108325,207.84,207.82,0.9]
[1760388635511,8.56,207.84,207.83,0.7]
[1760388635702,8.56,207.84,207.82,0.2]
[1760388636203,8.56,207.84,207.82,0.9]
[1760388637995,13.37139847,207.84,207.82,0.9]
[1760388638494,8.56,207.84,207.82,0.9]
[1760388638791,1.54108325,207.89,207.83,0.7]
[1760388639173,8.56,207.94,207.83,0.7]
[1760388639174,1.54108325,207.91,207.83,0.7]
[1760388640186,1.54108325,207.91,207.84,4.81139337]
[1760388640486,1.54108325,207.91,207.85,0.7]
[1760388641220,1.54108325,207.87,207.85,0.7]
[1760388641382,1.54108325,207.87,207.84,4.81139337]
[1760388641706,1.54108325,207.89,207.86,0.7]
[1760388641893,1.54108325,207.93,207.87,0.7]
[1760388642099,1.54108325,207.93,207.88,4.81046757]
[1760388642300,1.54108325,207.93,207.89,0.68]
[1760388642487,14.91025742,207.94,207.9,0.68]
[1760388642809,14.91025742,207.94,207.91,0.68]
[1760388644809,14.91025742,207.94,207.89,0.68]
[1760388645014,14.91025742,207.94,207.9,0.68]
[1760388645403,13.36917417,207.94,207.9,0.68]
[1760388645608,14.91025742,207.94,207.9,0.68]
[1760388647998,10.10108325,207.94,207.91,0.68]
[1760388648200,8.56,207.94,207.91,0.68]
[1760388648603,20.8,207.94,207.91,0.68]
[1760388649730,20.8,207.94,207.87,1.54108325]
[1760388649731,12.01967822,208.0,207.92,0.66]
[1760388650016,1.54108325,207.95,207.9,0.66]
[1760388650218,1.54108325,207.94,207.91,0.66]
[1760388650414,1.54108325,207.95,207.91,0.66]
[1760388650716,10.10108325,207.96,207.91,0.66]
[1760388651596,10.10108325,207.96,207.92,0.66]
[1760388652928,8.56,207.96,207.92,0.66]
[1760388653100,8.56,207.96,207.93,0.66]
[1760388653300,8.56,207.96,207.94,0.66]
[1760388654512,8.54,207.96,207.94,0.66]
[1760388654897,8.54,207.96,207.91,5.46973937]
[1760388655103,8.54,207.96,207.92,0.66]
[1760388655416,8.54,207.96,207.93,0.66]
[1760388658794,20.8,207.99,207.94,0.66]
[1760388658999,29.34,207.99,207.94,0.66]
[1760388659206,29.34,207.99,207.94,2.20108325]
[1760388659401,29.34,207.99,207.95,0.66]
[1760388659617,29.34,207.99,207.96,0.66]
[1760388660517,29.34,207.99,207.95,4.80882176]
[1760388660518,8.54,207.99,207.97,0.66]
[1760388660698,4.80736433,208.02,207.95,6.34990501]
[1760388660699,8.54,208.01,207.95,6.34990501]
[1760388660895,8.54,208.01,207.96,0.66]
[1760388661099,8.54,208.01,207.97,0.66]
[1760388661402,8.54,208.01,207.98,0.66]
[1760388663113,13.34746875,208.01,207.97,0.66]
[1760388664012,13.34746875,208.01,207.96,4.80851241]
[1760388664218,13.34746875,208.01,207.97,0.66]
[1760388665225,13.34746875,208.01,207.97,80.46]
[1760388665418,13.34746875,208.01,207.98,0.66]
[1760388666026,13.34746875,208.01,207.97,79.8]
[1760388666722,13.34746875,208.01,207.97,80.46]
[1760388666920,1.54108325,208.0,207.97,79.8]
[1760388667120,10.87647521,207.97,207.87,0.66]
[1760388667328,1.54108325,207.9,207.87,0.66]
[1760388667632,8.54,207.91,207.87,0.66]
[1760388668134,10.08108325,207.93,207.87,0.66]
[1760388668306,8.54,207.93,207.87,0.66]
[1760388668507,10.08108325,207.99,207.92,1.54108325]
[1760388668830,1.54108325,207.97,207.93,0.66]
[1760388669026,8.54,207.97,207.93,0.66]
[1760388669234,8.54,207.97,207.94,0.66]
[1760388670441,8.54,208.0,207.95,2.20108325]
[1760388670610,8.54,208.0,207.96,0.66]
[1760388670805,8.54,208.0,207.94,7.01011732]
[1760388671438,8.54,208.0,207.95,5.46865725]
[1760388671940,12.01626284,208.06,207.98,1.54108325]
[1760388672155,10.08108325,208.05,207.99,0.66]
[1760388672441,1.54108325,208.04,207.97,2.21108325]
[1760388672734,8.54,208.03,207.98,2.21108325]
[1760388672931,8.54,208.03,207.99,0.67]
[1760388674333,8.54,208.03,207.99,1.54108325]
[1760388674530,8.54,208.03,208.0,0.67]
[1760388674714,13.34701857,208.03,207.98,7.01920337]
[1760388674915,14.88810182,208.03,207.97,6.34943005]
[1760388675326,14.88810182,208.03,207.97,7.01943005]
[1760388675729,25.36451604,208.03,207.97,0.67]
[1760388675931,25.36451604,208.03,207.92,0.67]
[1760388675932,1.54108325,207.98,207.92,0.67]
[1760388676135,8.54,207.97,207.92,0.67]
[1760388676532,8.54,207.97,207.92,5.47941891]
[1760388676906,10.08108325,207.97,207.92,4.80941891]
[1760388677141,10.08108325,207.97,207.93,0.67]
[1760388677142,8.54,207.97,207.93,0.67]
[1760388678539,8.54,207.97,207.93,5.47929034]
[1760388678736,8.54,207.97,207.94,0.67]
[1760388678918,8.54,207.96,207.95,0.67]
[1760388679237,8.54,207.96,207.94,1.54108325]
[1760388679444,27.14893575,208.0,207.94,1.54108325]
[1760388679640,8.54,207.98,207.94,2.21108325]
[1760388679808,8.54,207.98,207.95,0.67]
[1760388680853,8.54,207.98,207.93,4.80929034]
[1760388681023,1.54108325,207.96,207.89,2.21108325]
[1760388681231,8.54,207.95,207.89,7.02131943]
[1760388681430,10.08108325,207.95,207.88,22.34108325]
[1760388681743,10.08108325,207.95,207.88,2.21108325]
[1760388682042,10.08108325,207.95,207.89,0.67]
[1760388682855,8.54,207.95,207.89,7.02110089]
[1760388683059,8.54,207.95,207.9,0.67]
[1760388683352,4.80869766,207.96,207.91,0.67]
[1760388683521,8.54,207.95,207.92,0.67]
[1760388683917,8.54,207.95,207.89,4.81001764]
[1760388684115,10.94680025,207.95,207.89,5.48001764]
[1760388684858,2.40680025,207.93,207.86,0.67]
[1760388685061,10.94680025,207.92,207.86,0.67]
[1760388685558,8.54,207.92,207.87,2.40680025]
[1760388685756,8.54,207.92,207.88,0.67]
[1760388686349,15.75635041,207.92,207.88,0.67]
[1760388686539,15.75635041,207.92,207.86,0.67]
[1760388686742,2.40680025,207.91,207.86,0.67]
[1760388686947,13.34955016,207.92,207.86,0.67]
[1760388686948,15.75635041,207.92,207.86,0.67]
[1760388687535,15.75635041,207.92,207.86,3.07680025]
[1760388687944,15.75635041,207.92,207.86,7.88751297]
[1760388688741,8.54,207.92,207.87,2.40680025]
[1760388689058,8.54,207.91,207.89,2.40680025]
[1760388689254,8.54,207.92,207.9,0.67]
[1760388691368,8.54,207.92,207.88,5.48044109]
[1760388691571,8.54,207.92,207.88,0.67]
[1760388691738,8.54,207.92,207.89,0.67]
[1760388692554,15.75637847,207.92,207.85,0.67]
[1760388692866,2.40680025,207.91,207.85,0.67]
[1760388693068,15.75637847,207.92,207.85,3.07680025]
[1760388693564,15.75637847,207.92,207.86,7.88773068]
[1760388694065,8.54,207.92,207.86,7.88773068]
[1760388694662,8.54,207.92,207.87,2.40680025]
[1760388694855,20.8,207.94,207.9,2.40680025]
[1760388695058,29.34,207.94,207.9,0.67]
[1760388695665,29.34,207.94,207.9,5.47997115]
[1760388696185,29.34,207.94,207.9,4.80997115]
[1760388696385,29.34,207.94,207.91,0.67]
[1760388697358,8.54,207.94,207.92,0.67]
[1760388698167,8.54,207.94,207.91,7.21640423]
[1760388698365,8.54,207.94,207.91,7.88640423]
[1760388699768,8.54,207.94,207.91,4.80960398]
[1760388699969,8.54,207.94,207.89,7.88680979]
[1760388700172,8.54,207.94,207.9,0.67]
[1760388700673,8.54,207.94,207.9,7.2166092]
[1760388700878,8.54,207.94,207.91,0.67]
[1760388702070,10.94680025,207.94,207.9,79.8]
[1760388702274,2.40680025,207.92,207.86,0.67]
[1760388702465,8.52,207.91,207.86,5.48089235]
[1760388702668,10.92680025,207.91,207.86,4.81089235]
[1760388702870,2.40680025,207.9,207.84,0.71]
[1760388703085,2.40680025,207.9,207.83,7.21842513]
[1760388703254,13.32989724,207.91,207.84,0.71]
[1760388703569,2.40680025,207.89,207.82,8.12861019]
[1760388703777,8.54,207.88,207.84,2.40680025]
[1760388703980,8.54,207.87,207.85,3.11680025]
[1760388704187,8.54,207.86,207.85,0.71]
[1760388704687,11.01863678,207.95,207.85,3.11680025]
[1760388704866,7.21611107,207.93,207.87,2.40680025]
[1760388705055,7.21611107,207.93,207.86,7.92773068]
[1760388705883,7.21611107,207.93,207.87,2.40680025]
[1760388706385,7.21611107,207.93,207.87,7.21729065]
[1760388708168,7.21611107,207.93,207.86,2.40680025]
[1760388708357,2.40680025,207.92,207.86,3.07680025]
[1760388708556,8.54,207.91,207.86,3.07680025]
[1760388708781,8.54,207.91,207.87,0.67]
[1760388709080,8.54,207.91,207.87,4.81069899]
[1760388709866,8.54,207.91,207.87,84.61069899]
[1760388710267,8.54,207.91,207.87,85.28069899]
[1760388710467,8.54,207.91,207.88,0.67]
[1760388710778,8.54,207.91,207.87,79.8]
[1760388710990,8.54,207.91,207.88,0.67]
[1760388711685,8.54,207.91,207.87,4.81061605]
[1760388713065,8.54,207.91,207.87,5.48061605]
[1760388715986,8.54,207.91,207.87,4.81061605]
[1760388716167,8.54,207.91,207.88,0.67]
[1760388716490,8.54,207.91,207.87,4.81061605]
[1760388716992,8.54,207.91,207.88,0.67]
[1760388717280,8.54,207.91,207.87,4.81061605]
[1760388717484,8.54,207.91,207.88,0.67]
[1760388719575,8.54,207.91,207.87,4.81061605]
[1760388719974,8.54,207.91,207.87,5.48061605]
[1760388721772,8.54,207.91,207.88,0.67]
[1760388722089,20.8,207.94,207.88,79.8]
[1760388722280,0.1,208.12,207.93,2.40680025]
[1760388722281,10.87647521,208.04,207.93,2.40680025]
[1760388722485,2.40680025,208.01,207.94,3.07680025]
[1760388722800,29.32,208.0,207.94,3.07680025]
[1760388723883,2.40680025,208.02,207.95,3.07680025]
[1760388724082,8.52,208.01,207.96,0.67]
[1760388724386,8.52,208.01,207.97,0.67]
[1760388724683,8.52,208.01,207.98,0.67]
[1760388724887,8.52,208.01,207.99,0.67]
[1760388725472,8.52,208.01,208.0,0.67]
[1760388725694,2.40680025,208.06,208.0,3.07680025]
[1760388725695,8.52,208.03,208.0,3.07680025]
[1760388725994,8.52,208.03,208.01,7.88417903]
[1760388726177,10.97647521,208.15,208.02,3.07680025]
[1760388726381,10.92680025,208.11,208.02,0.67]
[1760388726586,20.8,208.08,208.04,2.40680025]
[1760388726888,0.1,208.12,208.11,20.8]
[1760388727090,0.1,208.14,208.11,23.87680025]
[1760388727287,0.1,208.14,208.13,2.40680025]
[1760388727594,0.1,208.19,208.14,10.87647521]
[1760388727771,0.1,208.19,208.18,2.40680025]
[1760388728171,0.1,208.19,208.18,3.07680025]
[1760388728401,0.1,208.19,208.18,0.67]
[1760388728608,0.1,208.19,208.18,3.07680025]
[1760388730013,0.1,208.19,208.18,7.88033565]
[1760388731605,0.1,208.19,208.18,10.2871359]
[1760388731811,0.1,208.19,208.18,21.30577268]
[1760388732807,1e-08,208.19,208.18,101.10577268]
[1760388733500,1e-08,208.19,208.18,108.6252018]
[1760388733690,0.1,208.24,208.22,10.87647521]
[1760388733889,0.1,208.24,208.23,6.30867638]
[1760388734101,0.1,208.24,208.23,7.02867638]
[1760388735190,0.1,208.24,208.23,11.83105836]
[1760388735390,0.1,208.27,208.26,20.8]
[1760388735593,0.1,208.27,208.26,26.96651481]
[1760388735899,0.1,208.27,208.26,27.68651481]
[1760388736413,0.1,208.27,208.26,32.488205]
[1760388736705,0.1,208.27,208.26,26.32169019]
[1760388736913,0.1,208.27,208.26,32.488205]
[1760388740400,0.1,208.27,208.26,43.50684178]
[1760388740900,0.1,208.33,208.29,20.8]
[1760388741100,0.1,208.33,208.32,26.96651481]
[1760388741501,6.16651481,208.43,208.32,26.96651481]
[1760388741502,0.42,208.46,208.36,20.8]
[1760388741699,0.42,208.46,208.4,6.16651481]
[1760388742422,0.42,208.46,208.37,0.72]
[1760388742423,0.42,208.45,208.39,6.16651481]
[1760388742714,0.42,208.44,208.39,6.16651481]
[1760388742918,0.42,208.43,208.39,6.16651481]
[1760388743125,0.42,208.42,208.39,6.16651481]
[1760388743320,0.42,208.42,208.37,0.72]
[1760388743321,0.42,208.42,208.38,6.16651481]
[1760388743813,0.42,208.42,208.39,6.16651481]
[1760388744022,0.42,208.41,208.34,0.72]
[1760388744221,0.42,208.41,208.37,6.16651481]
[1760388745099,5.21780135,208.43,208.37,6.16651481]
[1760388745301,5.21780135,208.43,208.38,6.16651481]
[1760388745500,0.42,208.42,208.37,8.95113893]
[1760388745921,8.54,208.43,208.37,4.79906227]
[1760388746122,8.54,208.43,208.4,4.15207666]
[1760388746324,8.54,208.43,208.4,4.87207666]
[1760388746628,0.42,208.46,208.39,4.15207666]
[1760388746914,8.54,208.45,208.4,4.15207666]
[1760388747221,13.33755735,208.44,208.39,4.15207666]
[1760388747406,13.75755735,208.44,208.39,4.15207666]
[1760388747922,0.42,208.44,208.39,4.15207666]
[1760388748114,8.54,208.44,208.4,0.72]
[1760388748619,4.57207666,208.43,208.36,8.95125643]
[1760388748829,0.42,208.42,208.36,8.95125643]
[1760388749914,13.75776394,208.44,208.38,4.15207666]
[1760388750219,13.75776394,208.44,208.38,8.95091969]
[1760388750525,13.75776394,208.44,208.4,4.15207666]
[1760388750526,8.96,208.44,208.4,4.15207666]
[1760388751412,8.52,208.43,208.4,4.15207666]
[1760388752037,8.94,208.43,208.4,4.15207666]
[1760388753020,0.42,208.43,208.4,4.15207666]
[1760388753414,8.52,208.42,208.4,4.15207666]
[1760388754435,0.1,208.48,208.41,0.72]
[1760388754632,0.1,208.48,208.47,4.15207666]
[1760388755013,0.1,208.48,208.47,4.87207666]
[1760388755216,0.1,208.48,208.47,9.66892992]
[1760388755428,0.1,208.48,208.47,1.53148395]
[1760388755938,0.1,208.48,208.47,6.32833721]
[1760388756141,0.1,208.48,208.47,7.04833721]
[1760388757426,0.1,208.48,208.47,5.51685326]
[1760388757742,0.1,208.48,208.47,7.04833721]
[1760388761125,11.98389614,208.62,208.47,18.06697399]
[1760388761340,0.52,208.6,208.55,1.53148395]
[1760388761537,9.08,208.59,208.56,1.53148395]
[1760388761739,8.56,208.58,208.55,1.53148395]
[1760388762946,8.56,208.58,208.57,1.53148395]
[1760388763723,21.32,208.62,208.57,1.53148395]
[1760388763724,0.52,208.62,208.57,1.53148395]
[1760388763925,8.56,208.61,208.59,1.53148395]
[1760388764133,0.52,208.65,208.6,1.53148395]
[1760388764458,0.52,208.67,208.6,1.53148395]
[1760388764745,8.56,208.66,208.63,1.53148395]
[1760388764951,9.08,208.66,208.62,1.53148395]
[1760388765165,0.52,208.65,208.61,1.53148395]
[1760388765449,0.52,208.65,208.59,1.53148395]
[1760388765450,0.52,208.64,208.59,1.53148395]
[1760388765665,0.52,208.63,208.57,4.79455338]
[1760388765958,8.56,208.62,208.57,6.32603733]
[1760388766661,9.08,208.62,208.57,6.32603733]
[1760388766983,8.56,208.62,208.58,1.53148395]
[1760388767753,8.56,208.62,208.59,4.79409367]
[1760388768678,8.56,208.62,208.59,6.32557762]
[1760388768978,8.56,208.62,208.59,1.53148395]
[1760388769759,8.56,208.62,208.58,6.3257418]
[1760388770465,9.08,208.62,208.58,6.3257418]
[1760388770667,0.52,208.61,208.56,1.53148395]
[1760388771287,8.56,208.62,208.57,1.53148395]
[1760388771578,8.54,208.61,208.6,1.53148395]
[1760388771880,8.54,208.61,208.58,1.53148395]
[1760388772063,8.54,208.61,208.57,6.32601961]
[1760388772459,8.54,208.61,208.58,0.66]
[1760388772661,8.54,208.61,208.58,2.19148395]
[1760388772863,20.8,208.64,208.58,1.53148395]
[1760388773056,8.54,208.63,208.58,2.19148395]
[1760388773260,0.52,208.62,208.58,1.53148395]
[1760388773458,8.54,208.63,208.58,1.53148395]
[1760388773658,0.52,208.62,208.57,6.32601961]
[1760388773872,0.52,208.62,208.57,6.98601961]
[1760388774282,8.54,208.63,208.57,6.98601961]
[1760388774469,26.11300397,208.64,208.57,6.98601961]
[1760388774676,8.54,208.62,208.57,6.98601961]
[1760388774987,8.54,208.62,208.58,0.66]
[1760388775279,8.54,208.62,208.57,6.32601961]
[1760388775658,9.06,208.62,208.57,6.98601961]
[1760388775870,13.33341403,208.62,208.52,20.8]
[1760388776060,2.05148395,208.61,208.54,0.66]
[1760388776462,0.52,208.61,208.54,0.66]
[1760388776767,0.52,208.61,208.55,1.53148395]
[1760388777168,0.52,208.61,208.54,0.66]
[1760388777366,0.52,208.61,208.54,2.19148395]
[1760388777565,0.52,208.61,208.55,4.79501318]
[1760388778882,14.86489798,208.62,208.55,5.45501318]
[1760388779084,15.38489798,208.62,208.55,5.45501318]
[1760388779885,0.52,208.61,208.55,4.79501318]
[1760388780274,0.52,208.6,208.55,4.79501318]
[1760388780474,8.54,208.59,208.55,5.45501318]
[1760388781188,24.09770009,208.72,208.58,1.53148395]
[1760388781488,1.53148395,208.65,208.58,1.53148395]
[1760388781795,8.56,208.64,208.57,2.19148395]
[1760388782010,9.08,208.64,208.57,2.19148395]
[1760388782289,9.08,208.64,208.53,0.66]
[1760388782290,1.53148395,208.61,208.53,0.66]
[1760388782494,8.56,208.6,208.54,1.53148395]
[1760388782694,0.52,208.65,208.56,1.53148395]
[1760388782903,29.36,208.64,208.57,0.66]
[1760388783199,2.05148395,208.63,208.55,0.66]
[1760388783395,5.31340427,208.62,208.56,4.79478327]
[1760388783893,5.31340427,208.62,208.56,5.45478327]
[1760388785100,5.31340427,208.62,208.56,0.66]
[1760388785286,5.31340427,208.62,208.53,5.45542425]
[1760388785287,0.52,208.61,208.53,5.45542425]
[1760388785489,10.61148395,208.6,208.53,5.45542425]
[1760388785712,1.53148395,208.58,208.53,5.45542425]
[1760388786012,1.53148395,208.56,208.51,0.66]
[1760388786304,1.53148395,208.54,208.45,4.7973135]
[1760388786486,9.08,208.55,208.45,4.7973135]
[1760388786487,1.53148395,208.52,208.45,4.7973135]
[1760388786685,10.09148395,208.51,208.45,4.7973135]
[1760388786881,10.09148395,208.51,208.45,5.4573135]
[1760388787282,10.09148395,208.51,208.46,0.66]
[1760388787484,1.53148395,208.52,208.47,0.66]
[1760388787680,8.56,208.5,208.47,0.66]
[1760388787885,8.56,208.49,208.48,0.66]
[1760388788196,8.56,208.49,208.45,4.7973135]
[1760388788401,8.56,208.49,208.45,0.66]
[1760388788999,8.56,208.49,208.46,0.66]
[1760388790275,25.59545519,208.54,208.46,4.79707524]
[1760388790482,8.56,208.56,208.47,0.66]
[1760388790782,8.56,208.56,208.52,1.53148395]
[1760388790984,4.79294924,208.64,208.55,1.53148395]
[1760388791184,8.56,208.62,208.57,1.53148395]
[1760388791475,8.56,208.62,208.58,6.98561648]
[1760388791683,8.56,208.62,208.6,1.53148395]
[1760388791975,8.56,208.62,208.61,2.19148395]
[1760388792180,8.56,208.62,208.61,0.66]
[1760388793103,8.56,208.62,208.58,0.7]
[1760388793278,8.56,208.62,208.56,6.32604936]
[1760388793484,4.14513146,208.63,208.56,8.93969687]
[1760388793680,8.93807974,208.64,208.58,4.14513146]
[1760388793892,8.56,208.63,208.59,0.7]
[1760388794079,8.56,208.63,208.56,9.63969687]
[1760388794290,12.70513146,208.63,208.56,9.63969687]
[1760388794605,8.56,208.63,208.57,4.14513146]
[1760388794799,12.70513146,208.63,208.56,9.63969687]
[1760388794987,8.56,208.63,208.57,4.14513146]
[1760388795197,8.56,208.63,208.58,9.63945498]
[1760388795397,8.56,208.63,208.59,4.14513146]
[1760388795616,8.56,208.63,208.61,4.14513146]
[1760388795783,8.56,208.63,208.6,4.84513146]
[1760388795982,12.49917708,208.7,208.62,4.14513146]
[1760388796182,4.14513146,208.67,208.61,4.84513146]
[1760388796800,24.94513146,208.67,208.61,4.84513146]
[1760388797105,29.73761544,208.67,208.61,4.84513146]
[1760388797403,29.73761544,208.67,208.61,9.6386677]
[1760388797715,8.56,208.69,208.66,4.14513146]
[1760388798203,4.79018969,208.76,208.68,4.14513146]
[1760388798508,8.56,208.75,208.7,4.14513146]
[1760388798690,8.56,208.75,208.71,4.14513146]
[1760388799085,13.35042593,208.75,208.71,4.84513146]
[1760388799402,13.35042593,208.75,208.71,0.7]
[1760388799599,8.56,208.74,208.71,0.7]
[1760388799791,8.56,208.74,208.64,20.8]
[1760388799792,13.22513146,208.74,208.67,0.7]
[1760388799995,4.14513146,208.71,208.65,4.79271507]
[1760388800193,4.14513146,208.71,208.52,18.55193146]
[1760388800194,4.14513146,208.66,208.57,0.7]
[1760388800395,12.70513146,208.65,208.58,0.7]
[1760388800590,8.58,208.64,208.59,4.14513146]
[1760388800791,8.58,208.64,208.58,0.7]
[1760388800792,8.58,208.64,208.6,0.7]
[1760388800989,4.14513146,208.62,208.57,0.7]
[1760388801307,4.14513146,208.6,208.54,0.7]
[1760388801503,4.14513146,208.6,208.51,4.84513146]
[1760388801504,4.14513146,208.59,208.51,4.84513146]
[1760388801712,8.58,208.58,208.51,4.84513146]
[1760388802015,4.14513146,208.57,208.51,0.7]
[1760388802196,4.14513146,208.63,208.55,4.14513146]
[1760388802511,8.58,208.62,208.56,4.14513146]
[1760388803010,8.58,208.62,208.5,20.8]
[1760388803011,8.58,208.62,208.58,4.14513146]
[1760388803214,8.58,208.62,208.58,4.84513146]
[1760388803416,8.58,208.62,208.59,4.14513146]
[1760388803912,8.58,208.62,208.58,0.7]
[1760388803913,8.58,208.62,208.61,4.14513146]
[1760388804087,8.58,208.62,208.6,4.84513146]
[1760388804908,8.58,208.62,208.6,0.7]
[1760388805115,8.58,208.62,208.59,4.14513146]
[1760388805812,8.58,208.62,208.57,0.7]
[1760388806120,8.58,208.62,208.57,4.84513146]
[1760388806417,8.58,208.62,208.58,4.14513146]
[1760388806799,8.58,208.62,208.58,4.84513146]
[1760388807110,8.58,208.62,208.58,4.14513146]